[Event "Lake Sevan"]
[Site "Martuni"]
[Date "2016.07.21"]
[Round "4"]
[White "Sevian, Samuel"]
[Black "Onischuk, Vladimir"]
[Result "1-0"]
[ECO "B07"]
[WhiteElo "2595"]
[BlackElo "2615"]
[Annotator "Baldauf,M"]
[PlyCount "51"]
[EventDate "2016.07.18"]
[EventType "tourn"]
[EventRounds "9"]
[EventCountry "ARM"]
[EventCategory "16"]
[SourceTitle "CBM 174"]
[Source "ChessBase"]
[SourceDate "2016.09.13"]
[SourceVersion "1"]
[SourceVersionDate "2016.09.13"]
[SourceQuality "1"]
[TimeControl "6000+1450"]
[WhiteClock "0:07:12"]
[BlackClock "0:00:58"]

1. e4 d6 2. d4 Nf6 3. Nc3 g6 4. Be3 c6 5. Qd2 Nbd7 6. Nf3 e5 {sieht bereits
etwas krum aus} (6... Bg7) 7. Bc4 h6 (7... Bg7 8. dxe5 dxe5 9. Qd6 $5 (9. Bxf7+
$2 Kxf7 10. Ng5+ Ke7 11. O-O-O Qc7) 9... Bf8 10. Qd3 Bg7 $140 (10... Be7 $142
$14) 11. Bxf7+ $1 Kxf7 12. Ng5+ Ke7 13. O-O-O Qc7 14. Qc4 $18 {[%cal Gc4f7]})
8. O-O (8. h3 {lenkt die Partie in ruhigere Gewässer}) 8... Ng4 $5 {Schwarz
vernachlässigt seine Entwicklung aufs Gröbste und betteln nahezu darum.
Positiv gewendet muss Weiß nun allerdings konkret etwas unternehmen, da das
schwarze Spiel nur mit massiven Maßnahmen zu bestrafen sein sollte.} 9. h3 Nxe3
10. fxe3 Qe7 {Diagramm [#]} 11. Nxe5 $5 {Sevian nimmt den Fehdehandschuh auf -
er opfert eine Leichtigur für zwei Bauern, wobei in der entstehenden Stellung
nicht ganz klar ist, ob die Kompensation ausreicht.} (11. Nh2 Rh7 12. Rf2 Nb6
13. Bb3 Bd7 14. Raf1 f5 15. exf5 $13) 11... dxe5 12. Rxf7 Qg5 $1 (12... Qxf7
13. Bxf7+ Kxf7 14. Rf1+ Kg7 15. dxe5 $36) 13. Qf2 Be7 14. g3 (14. d5 Rf8 15. d6
Bf6 {und Schwarz behauptet sich}) 14... Rf8 $6 (14... h5 $1 15. h4 Qh6 {
die Dame steht hier wesentlich sicherer, nimmt zudem noch Einfluss auf das
Feld f8. Dies macht den Unterschied, da Schwarz nach folgendem Tf8 immer mit
der Dame auf f8 zurücknehmen kann und somit der Sd7 nicht an die Verteidigung
gebunden ist.} 16. Rf1 (16. Rd1 Rf8 17. dxe5) 16... Rf8 $13) 15. h4 Qg4 16. Rd1
{die Stellung ist nun bereits schwierig für Schwarz, da das natürliche ...Sb6
scheitert.} Rxf7 $2 (16... Kd8 17. Rxf8+ Nxf8 18. Be2 Qe6 19. d5 $44) (16...
Nb6 17. Rxf8+ Bxf8 18. Qf7+ Kd8 19. Qxf8+ $18) (16... exd4 $5 17. exd4 Rxf7 (
17... Kd8 18. Rxf8+ Bxf8 19. e5 $44) 18. Qxf7+ Kd8 19. Rd3 $1 (19. Kh2 $2 Nf6)
19... Nf8 20. d5 $36) 17. Qxf7+ Kd8 18. Kh2 exd4 {Diagramm [#]} (18... Bxh4 19.
gxh4 Qxh4+ 20. Kg2 Qg4+ 21. Kf2 Qh4+ 22. Ke2 Qh2+ 23. Qf2 $14) 19. Be6 $1 {
ein schöner Zwischenzug, der die schwarze Koordination völlig durcheinander
bringt.} (19. exd4 Nf6 {[%cal Gg4h3]}) 19... Qh5 20. exd4 Nf6 21. d5 {jetzt
schlägt der weiße Angriff durch} cxd5 22. Nxd5 Qe2+ 23. Kh3 Bxe6+ 24. Qxe6 Nxd5
25. Rxd5+ Ke8 26. Qxg6+ 1-0

[Event "Tata Steel-A 80th"]
[Site "Wijk aan Zee"]
[Date "2018.01.24"]
[Round "10"]
[White "Hou, Yifan"]
[Black "Adhiban, Baskaran"]
[Result "1/2-1/2"]
[ECO "B07"]
[WhiteElo "2680"]
[BlackElo "2655"]
[Annotator "Fernandez,D"]
[PlyCount "204"]
[EventDate "2018.01.13"]
[EventType "tourn"]
[EventRounds "13"]
[EventCountry "NED"]
[EventCategory "20"]
[SourceTitle "CBM 183"]
[Source "ChessBase"]
[SourceDate "2018.03.14"]
[SourceVersion "1"]
[SourceVersionDate "2018.03.14"]
[SourceQuality "1"]
[TimeControl "40/6000+30:20/3000+30:900+30"]

1. d4 {[%emt 0:00:00]} Nf6 {[%emt 0:01:37]} 2. Nf3 {[%emt 0:00:00]} d6 {
[%emt 0:00:48]} 3. g3 {[%emt 0:00:01]} g6 {[%emt 0:00:28]} 4. Bg2 {[%emt 0:00:
06]} Bg7 {[%emt 0:00:04]} 5. O-O {[%emt 0:00:06]} O-O {[%emt 0:00:03]} 6. Re1 {
[%emt 0:00:12] White opts to play that rare creature, the Fianchetto KID
without c4. There can be nothing really wrong with it but the game now
resembles something more like a Philidor with a slightly strange fianchetto
for White.} Nbd7 {[%emt 0:01:17]} 7. e4 {[%emt 0:00:11]} e5 {[%emt 0:00:24]} 8.
Nc3 {[%emt 0:00:06]} c6 {[%emt 0:02:39]} 9. a4 {[%emt 0:00:19]} Re8 {[%emt 0:
01:27]} (9... a5 10. h3 Re8 11. Be3 exd4 12. Bxd4 Rb8 13. Re2 Qc7 14. Qe1 Ne5
15. Nd2 $11 {Lobron,E-Gelfand,B Biel 1993}) 10. h3 {[%emt 0:02:54]} Qc7 {
[%emt 0:00:54]} 11. Be3 {[%emt 0:05:35]} b6 {[%emt 0:00:08]} 12. Qd2 {[%emt 0:
00:05]} Bb7 {[%emt 0:00:33]} 13. Rad1 {[%emt 0:02:31]} Rad8 $11 {[%emt 0:00:22]
So, both sides have completed development and it is up to White what she wants
to do about ...d5, which may be coming soon. It is perhaps not so strange that
the play vaguely resembles some of the Breyer sidelines examined yesterday in
the notes to Anand-Carlsen.} 14. Bg5 {[%emt 0:04:06]} (14. Bh6 a6 15. Bxg7 Kxg7
{is no panacea for White, who must still worry about slow play: ...h6, ...b5, .
..Qb6, maybe eventually ...c5.}) 14... a6 {[%emt 0:09:50]} 15. h4 {[%emt 0:13:
22]} b5 {[%emt 0:03:00]} 16. axb5 {[%emt 0:06:42]} axb5 {[%emt 0:00:12]} 17. b3
{[%emt 0:01:17]} (17. h5 $5 {initiates some bizarre complications. For
instance:} exd4 18. Nxd4 b4 19. Na2 Ne5 $13) 17... Qb8 {[%emt 0:21:17]} 18.
dxe5 {[%emt 0:15:41]} (18. h5 {is again worth at least calculating, though
Black has a bail-out option in ...h6 intending ...Nxh5.}) 18... dxe5 {[%emt 0:
03:14]} 19. Bh3 {[%emt 0:08:55]} Nf8 {[%emt 0:14:24]} 20. Qe3 {[%emt 0:02:58]}
Rxd1 {[%emt 0:03:25]} 21. Rxd1 {[%emt 0:00:13]} Bc8 {[%emt 0:01:18]} 22. Bxc8 {
[%emt 0:08:30]} Rxc8 {[%emt 0:01:14] This is now a fully believable Breyer Ruy
Lopez, except the pawn at c2, which should be on c4.} 23. Bxf6 {[%emt 0:06:12]}
Bxf6 {[%emt 0:00:02]} 24. Na2 {[%emt 0:00:06]} Ne6 {[%emt 0:19:21]} 25. Nb4 {
[%emt 0:00:40] As a firm believer in the knight, it was interesting to watch
this game and see how convincing or otherwise the 'bad' dark-square bishop was
against it. ('bad' is in quotes because I do know a thing or two about the
KID!)} Be7 {[%emt 0:02:09]} 26. Nd3 {[%emt 0:11:43]} f6 {[%emt 0:00:04]} 27. h5
{[%emt 0:00:06]} g5 $6 {[%emt 0:00:02]} (27... Kf7 $11 {was maybe better, not
making too many pawn weaknesses.}) 28. b4 {[%emt 0:03:11]} Rd8 {[%emt 0:04:40]}
(28... Rc7 29. Ndxe5 $13 {is messy, but could have been Black's best.}) 29. Ra1
{[%emt 0:05:10]} Rd7 {[%emt 0:01:52]} 30. Nh2 {[%emt 0:02:03]} Nd4 {[%emt 0:01:
06]} 31. Ra2 {[%emt 0:04:49]} (31. Qd2 $5 {tries to arrange a queen lift to a2.
} Ra7 {causes a cascade of tactical issues, beginning} 32. Rxa7 Qxa7 33. c3 $14
) 31... Ra7 {[%emt 0:03:56]} 32. Rb2 {[%emt 0:01:30]} Ra3 {[%emt 0:04:36]} 33.
Qd2 {[%emt 0:01:40]} Qa8 {[%emt 0:08:26]} (33... c5 $132 {is a better 'human'
move, trying to get the queen to c6.} 34. Nxc5 Qe8 {and White is having to
defend on a number of fronts.}) 34. c3 {[%emt 0:02:04]} Ne6 $2 {[%emt 0:00:01]}
35. Ne1 $6 {[%emt 0:02:47]} (35. Nxe5 fxe5 36. Qd7 Kf7 37. Ng4 $16 {is winning
after some convoluted tactical lines!}) (35. Ng4 $14 {is safe and 'normal'.})
35... Ra1 {[%emt 0:00:33]} 36. Kf1 $2 {[%emt 0:00:46]} (36. Kg2 {is still good
for the knights. For instance:} c5 37. Nc2 $1 (37. Qd5 $6 Qxd5 38. exd5 Nc7 $15
) 37... Ra6 38. Qe2 $14) 36... c5 {[%emt 0:00:32]} 37. f3 {[%emt 0:01:18]} cxb4
{[%emt 0:00:29]} 38. cxb4 {[%emt 0:00:22]} Nd4 {[%emt 0:00:26]} (38... Qa3 {
is almost winning, e.g.} 39. Kf2 Bd8 $17 (39... Rd1 $5)) 39. Kg2 {[%emt 0:00:
14]} Qa3 {[%emt 0:02:04] By contrast with the last note, now Black lacks the
tempo to play ...Rxe1 against Kg2.} 40. Nd3 {[%emt 0:00:00]} Qa4 {[%emt 0:00:
11]} 41. Nc1 {[%emt 0:06:57]} Qa3 {[%emt 0:10:04]} 42. Ne2 {[%emt 0:09:32]}
Bxb4 {[%emt 0:21:22] There is nothing better than cashing in. In what follows,
I have made brief notes rather than giving variations, knowing that better
analysts than myself will pick apart the endgame.} 43. Qxb4 {[%emt 0:02:36]}
Qxb4 {[%emt 0:00:25]} 44. Rxb4 {[%emt 0:00:05]} Ra2 {[%emt 0:01:09]} 45. Ng4 {
[%emt 0:02:14]} Kg7 {[%emt 0:02:52]} 46. Kf1 {[%emt 0:00:56]} Nxe2 {[%emt 0:00:
46]} 47. Rxb5 {[%emt 0:05:31]} Nxg3+ {[%emt 0:00:32]} 48. Kg1 {[%emt 0:00:04]
And so we reach an unpleasant endgame for White, but still one that is
probably technically drawn.} Ne2+ {[%emt 0:00:53]} 49. Kf1 {[%emt 0:00:06]}
Ng3+ {[%emt 0:00:03]} 50. Kg1 {[%emt 0:00:04]} Nxh5 {[%emt 0:00:32]} 51. Rb7+ {
[%emt 0:00:03]} Kg6 {[%emt 0:00:14]} 52. Rb6 {[%emt 0:00:05]} Kg7 {[%emt 0:01:
29]} 53. Rb7+ {[%emt 0:00:04]} Kg6 {[%emt 0:00:08]} 54. Rb6 {[%emt 0:00:04]}
Ra5 {[%emt 0:02:17]} 55. Kf2 {[%emt 0:00:07] Black lacks moves here- all his
pieces are tied down to their present positions. A pawn sacrifice will become
necessary.} Kg7 {[%emt 0:00:11]} 56. Rb7+ {[%emt 0:00:05]} Kg6 {[%emt 0:00:06]}
57. Rb6 {[%emt 0:00:03]} Rc5 {[%emt 0:01:16]} 58. Ra6 {[%emt 0:00:05]} Kg7 {
[%emt 0:00:08]} 59. Ra7+ {[%emt 0:00:05]} Kg6 {[%emt 0:00:03]} 60. Ra6 {
[%emt 0:00:00]} Rc2+ {[%emt 0:05:56]} 61. Kg1 {[%emt 0:00:26]} Kg7 {[%emt 0:04:
49]} 62. Ra7+ {[%emt 0:00:04]} Kg6 {[%emt 0:00:04]} 63. Ra6 {[%emt 0:00:04]}
Rc7 {[%emt 0:02:27] Ultimately this had to be done, but the pressure on f6 is
not relieved.} 64. Nxe5+ {[%emt 0:00:05]} Kg7 {[%emt 0:00:03]} 65. Ng4 {
[%emt 0:00:06]} Rf7 {[%emt 0:00:03]} 66. Ne3 {[%emt 0:01:34]} Nf4 {[%emt 0:00:
19]} 67. Nf5+ {[%emt 0:00:06]} Kg6 {[%emt 0:00:03]} 68. Ra8 {[%emt 0:06:18]} h5
{[%emt 0:03:59]} 69. Rg8+ {[%emt 0:03:16]} Kh7 {[%emt 0:00:05]} 70. Rd8 {
[%emt 0:00:03]} h4 {[%emt 0:03:46]} 71. Rd6 {[%emt 0:02:59]} Kg6 {[%emt 0:00:
18]} 72. Ne3 {[%emt 0:04:19]} Re7 {[%emt 0:03:36]} 73. Kf2 {[%emt 0:04:50]}
Nh3+ {[%emt 0:00:20]} (73... Rb7 $5 74. Ng4 Rb2+ 75. Kf1 Nh5 $15 {was another
try, but probably not one that deserves to succeed.}) 74. Kf1 {[%emt 0:00:11]}
Nf4 {[%emt 0:00:07]} 75. Kf2 {[%emt 0:00:06]} Re6 {[%emt 0:00:35]} 76. Rd7 {
[%emt 0:00:02]} Ra6 {[%emt 0:01:08]} 77. Nf5 {[%emt 0:00:06]} Ra2+ {[%emt 0:00:
38]} 78. Kg1 {[%emt 0:13:50]} Ne2+ {[%emt 0:03:09]} (78... Nh3+ 79. Kh1 Nf2+
80. Kg1 g4 $15 {kept the game a bit more lively, but is unlikely to ultimately
lead to more than rook and knight vs rook.}) 79. Kh1 {[%emt 0:00:05]} Ng3+ {
[%emt 0:00:03]} 80. Nxg3 {[%emt 0:00:04]} hxg3 {[%emt 0:00:03]} 81. Rd6 $1 {
[%emt 0:00:24]} Kf7 {[%emt 0:01:44]} (81... g4 82. e5 $1 $11) 82. Rd5 {[%emt 0:
02:05]} Re2 {[%emt 0:03:32]} 83. Kg1 {[%emt 0:01:25]} Kg7 {[%emt 0:02:03]} 84.
Rf5 $1 {[%emt 0:00:19] Against this construction there is not a lot that can
be done.} Kg6 {[%emt 0:00:07]} 85. Kf1 {[%emt 0:00:16]} Ra2 {[%emt 0:01:29]}
86. Kg1 {[%emt 0:00:47]} Rf2 {[%emt 0:01:26]} 87. Kh1 {[%emt 0:00:04]} Re2 {
[%emt 0:01:49]} (87... g4 88. fxg4 $11) 88. Kg1 {[%emt 0:00:01]} Kf7 {[%emt 0:
00:43]} (88... g4 89. Rf4 $1 $11) 89. f4 {[%emt 0:05:20]} gxf4 {[%emt 0:01:01]}
90. Rxf4 {[%emt 0:00:04]} Ke6 {[%emt 0:00:10]} 91. Rg4 {[%emt 0:00:48]} Re3 {
[%emt 0:00:20]} 92. Rf4 {[%emt 0:00:05]} Ke5 {[%emt 0:00:53]} 93. Rf5+ {
[%emt 0:00:04]} Ke6 {[%emt 0:00:03]} 94. Rf4 {[%emt 0:00:05]} Re2 {[%emt 0:00:
47]} 95. Rg4 {[%emt 0:00:08]} Ke5 {[%emt 0:00:02]} 96. Rxg3 {[%emt 0:00:06]}
Kxe4 {[%emt 0:00:04]} 97. Ra3 {[%emt 0:00:47]} f5 {[%emt 0:00:07]} 98. Kf1 {
[%emt 0:00:05]} Re3 {[%emt 0:00:03]} 99. Ra5 {[%emt 0:00:22]} Rb3 {[%emt 0:00:
25]} 100. Kf2 {[%emt 0:00:06]} Rb2+ {[%emt 0:00:02]} 101. Kf1 {[%emt 0:00:05]}
f4 {[%emt 0:00:04]} 102. Ra3 {[%emt 0:00:10]} Rc2 {Black didn't bother
disrespecting his opponent by forcing her to demonstrate the need to play Ra8
only after ...f3.} 1/2-1/2

[Event "FRA-ch 58 Championnat"]
[Site "Belfort"]
[Date "1983.08.15"]
[Round "4"]
[White "Seret, Jean Luc"]
[Black "Bernard, Christophe"]
[Result "1-0"]
[ECO "B07"]
[WhiteElo "2375"]
[BlackElo "2335"]
[Annotator "Primel,D"]
[PlyCount "49"]
[EventDate "1983.08.12"]
[EventType "tourn"]
[EventRounds "15"]
[EventCountry "FRA"]
[EventCategory "2"]
[SourceTitle "EXT 2016"]
[Source "ChessBase"]
[SourceDate "2015.10.08"]
[SourceVersion "1"]
[SourceVersionDate "2015.10.08"]
[SourceQuality "1"]
[TimeControl "40/9000:16/5400:0"]

1. e4 d6 2. g3 Nf6 3. Bg2 g6 4. d4 Bg7 5. Ne2 O-O 6. O-O e5 7. Nbc3 exd4 $6 {
peu joué} (7... Nc6 8. dxe5 dxe5 9. Bg5 Be6 10. Nd5 Bxd5 11. exd5 Ne7 12. c4 h6
13. Bd2 Nf5 14. Bc3 Re8) (7... c6 8. a4 a5) (7... Bg4 8. h3 exd4 $1 {SERET} 9.
Qxd4 Bxe2 10. Nxe2 Re8 11. e5 Rxe5 12. Bxb7 Nbd7 13. Bxa8 Qxa8 14. Be3 Re8 $132
{[%cal Gd7e5,Ge5f3]}) 8. Nxd4 Re8 9. h3 Nbd7 10. Re1 c6 11. Bf4 Ne5 12. Qc1 a5
13. a4 Qc7 14. Bh6 Bxh6 15. Qxh6 Qb6 16. Nce2 (16. Nb3 Be6 $132) 16... Bd7 17.
b3 c5 $2 18. Nf5 $1 Bxf5 19. exf5 d5 20. g4 $1 {[%cal Ge2g3,Gg4g5,Ge2f4]} Qd6
21. Nc3 (21. g5 Ne4 22. Rad1 Qf8) 21... Rad8 $2 (21... d4 22. Nb5 Qd7) 22. g5
Ne4 $4 (22... Nh5 23. Nxd5 Nc6 24. Rxe8+ (24. Nf6+) 24... Rxe8 25. c3 (25. f6))
23. Rxe4 $1 dxe4 24. Nxe4 {[%cal Ge4f6]} Nf3+ 25. Bxf3 1-0

[Event "Sautron op 15th"]
[Site "Sautron"]
[Date "2015.10.24"]
[Round "6.1"]
[White "Libiszewski, Fabien"]
[Black "Zubarev, Alexander2"]
[Result "1/2-1/2"]
[ECO "B07"]
[WhiteElo "2523"]
[BlackElo "2542"]
[Annotator "RR"]
[PlyCount "52"]
[EventDate "2015.10.24"]
[EventType "swiss"]
[EventRounds "9"]
[EventCountry "FRA"]
[SourceTitle "CBM 169 Extra"]
[Source "ChessBase"]
[SourceDate "2015.12.18"]
[SourceVersion "1"]
[SourceVersionDate "2015.12.18"]
[SourceQuality "1"]
[TimeControl "40/5400+30:1800+30"]
[WhiteClock "0:07:20"]
[BlackClock "0:00:47"]

1. e4 {[%emt 0:00:00]} d6 {[%emt 0:00:00]} 2. d4 {[%emt 0:00:12]} Nf6 {[%emt 0:
00:01]} 3. Nc3 {[%emt 0:00:17]} g6 {[%emt 0:00:04]} 4. Be3 {[%emt 0:01:01]} c6
{[%emt 0:00:07]} 5. h3 {[%emt 0:07:46]} Qa5 {[%emt 0:05:06] Une ligne
secondaire} (5... Bg7) (5... Nbd7) 6. Qd2 {[%emt 0:04:21]} (6. Bd3 e5 7. Nf3
Nbd7 8. O-O Bg7 9. Qd2 O-O 10. Rad1 Re8 11. Rfe1 Qc7 12. a4 exd4 13. Bxd4 Ne5
14. Be2 Be6 15. Ng5 h6 16. Nxe6 fxe6 17. f4 Nf7 18. Be3 Rad8 19. Bd3 e5 20.
fxe5 dxe5 21. Qf2 b6 22. Bc4 Kh7 23. a5 bxa5 24. Rxd8 Rxd8 25. Bxa7 Qe7 26. Bc5
Nd6 27. Bd3 Nh5 28. Ne2 Rf8 29. Qe3 Nf4 30. Rf1 Qf6 31. Kh1 Qe6 32. Nxf4 exf4
33. Rxf4 Rxf4 34. Qxf4 Nf7 35. b3 Ne5 {Fressinet,L (2702)-Onischuk,V (2612)
Bastia 2015 1/2-1/2}) 6... Nbd7 {[%emt 0:01:24]} 7. f4 {[%emt 0:04:44]} (7. Nf3
Bg7 8. Bd3 (8. a4)) 7... b5 {[%emt 0:12:26][%cal Gb5b4,Gf6e4]} 8. Bd3 {[%emt 0:
00:58]} b4 {[%emt 0:00:14]} 9. Nce2 {[%emt 0:02:09]} (9. Nd1 c5 10. Nf2 {
Areshchenko,A (2625)-Zimmerman,Y (2375) Monarch Assurance 14th 2005 (2) 1/2})
9... c5 {[%emt 0:00:55]} 10. e5 $146 {[%emt 0:15:02]} (10. c3 Bb7 11. d5 bxc3
12. Nxc3 Bg7 13. Nf3 O-O 14. O-O Kh8 15. Rae1 e6 16. dxe6 fxe6 17. Ng5 Rae8 18.
Bb5 Qc7 19. e5 dxe5 20. fxe5 Nd5 21. Rxf8+ Bxf8 22. Nxe6 Rxe6 23. Nxd5 Qxe5 24.
Bxd7 Rd6 25. Qf2 Qg7 26. Bxc5 Rxd5 27. Re8 {1-0 (27) Grigoriants,S (2443)
-Panarin,M (2413) Vladimir 2002}) 10... cxd4 {[%emt 0:03:03]} 11. Nxd4 {
[%emt 0:04:02]} dxe5 {[%emt 0:00:15]} 12. Nc6 {[%emt 0:07:21]} Qc7 {[%emt 0:11:
47]} 13. Nxe5 {[%emt 0:00:54]} Bg7 {[%emt 0:12:43]} (13... Nxe5 14. fxe5 Qxe5
15. Nf3 Qg3+) 14. Ngf3 {[%emt 0:00:28]} O-O {[%emt 0:01:11]} 15. Bd4 {[%emt 0:
11:34]} Nc5 {[%emt 0:08:33]} 16. Bc4 {[%emt 0:03:40]} Nce4 $1 {[%emt 0:18:05]}
17. Qxb4 {[%emt 0:01:22]} Rb8 {[%emt 0:09:00]} 18. Qa3 {[%emt 0:01:00]} Nd6 {
[%emt 0:04:27]} 19. Bb3 {[%emt 0:12:55]} a5 {[%emt 0:04:34]} 20. Qc5 {[%emt 0:
05:38]} Qxc5 {[%emt 0:01:21]} 21. Bxc5 {[%emt 0:00:04]} Nfe4 $1 {[%emt 0:00:26]
} 22. Ba3 {[%emt 0:00:35]} Bh6 {[%emt 0:03:52]} 23. O-O {[%emt 0:05:26]} Bxf4 {
[%emt 0:00:11]} 24. Rfe1 {[%emt 0:00:32]} (24. Rae1) 24... Bb7 {[%emt 0:01:32]}
25. Nd7 {[%emt 0:00:36]} Bg3 {[%emt 0:00:18]} 26. Nxb8 {[%emt 0:03:03]} Bf2+ {
[%emt 0:00:38]} 1/2-1/2

[Event "Sautron op 15th"]
[Site "Sautron"]
[Date "2015.10.24"]
[Round "9.2"]
[White "Lejarre, Ludovic"]
[Black "Le Roux, Jean Pierre"]
[Result "0-1"]
[ECO "B07"]
[WhiteElo "2342"]
[BlackElo "2572"]
[Annotator "RR"]
[PlyCount "46"]
[EventDate "2015.10.24"]
[EventType "swiss"]
[EventRounds "9"]
[EventCountry "FRA"]
[SourceTitle "CBM 169 Extra"]
[Source "ChessBase"]
[SourceDate "2015.12.18"]
[SourceVersion "1"]
[SourceVersionDate "2015.12.18"]
[SourceQuality "1"]
[TimeControl "40/5400+30:1800+30"]
[WhiteClock "0:01:53"]
[BlackClock "0:08:29"]

1. e4 {[%emt 0:03:07]} g6 {[%emt 0:00:28]} 2. d4 {[%emt 0:00:26]} Bg7 {[%emt 0:
00:11]} 3. Nc3 {[%emt 0:01:13]} d6 {[%emt 0:00:10]} 4. Bc4 {[%emt 0:02:00]} Nf6
{[%emt 0:02:08]} 5. Qe2 {[%emt 0:00:26]} Nc6 {[%emt 0:12:49]} 6. e5 {[%emt 0:
15:25] Une première hésitation des Blancs mais la position est pourtant
connue} (6. Nf3 {L'alternative}) 6... Ng4 {[%emt 0:10:17]} 7. e6 {[%emt 0:22:
02]} (7. Bb5 {[%cal Gd4d5]} O-O 8. Bxc6 bxc6 9. h3 Nh6 10. Nf3 c5 (10... Rb8))
7... Nxd4 {[%emt 0:15:35]} (7... f5 8. d5 Na5 9. h3 {Hoffmann,M (2425)-Jansa,V
(2455) Muenster 1992 (5) 1/2}) 8. exf7+ {[%emt 0:17:11] La position est tendue
et les deux adversaires sont sortis de la préparation même si la position
est encore théorique} (8. Qxg4 Nxc2+ 9. Kd1 f5 10. Bb5+ c6 11. Qa4 Nd4 12. Nf3
cxb5 13. Nxb5 Nxf3 14. Nc7+ Kf8 15. Nxa8 Nd4 16. Qxa7 Bxe6 17. Be3 Nb5 18. Qxb7
Qa5 19. Nb6 Bxb2 20. Ke2 Qb4 21. Rac1 Nc3+ 22. Kd3 Qb5+ 23. Kc2 Qe2+ 24. Bd2
Bxc1 25. Rxc1 Ne4 26. Rd1 Kf7 27. f3 Nc5 28. Qa7 Qxg2 29. Re1 Qxf3 30. Bc3 Re8
31. Qa5 Rb8 32. Qb4 Nd3 33. Qd4 Nxe1+ 34. Bxe1 Qc6+ 35. Bc3 Qxb6 {0-1 (35)
Kotz,H (2345)-Kilgus,G (2428) Austria 2014}) 8... Kf8 {[%emt 0:00:09]} 9. Qd1 {
[%emt 0:00:22]} Bf5 {[%emt 0:14:42][%csl Re1][%cal Gd4c2]} 10. Bd3 {[%emt 0:02:
47]} (10. Bb3 {[%cal Gb3c2,Gb3f7]} Nxb3 11. axb3 Kxf7 12. Nf3 Rf8 13. O-O Kg8
$11) 10... Qd7 {[%emt 0:00:45]} 11. Be3 $146 {[%emt 0:03:37]} (11. Nge2 Bxd3
12. cxd3 Nxe2 13. Qxe2 Kxf7 14. O-O Ne5 15. d4 Nc6 16. Be3 Rhe8 17. Qc4+ Kf8
18. f4 e6 19. d5 Ne7 20. dxe6 Qc6 21. Qb3 d5 22. f5 gxf5 23. Bg5 Bxc3 24. bxc3
Qb6+ 25. Qxb6 axb6 26. g4 Ra4 27. Bh6+ Kg8 28. gxf5 Rh4 29. f6 {1-0 (29) Horak,
M (2300)-Pick,S (2240) Czechia 2005}) 11... Qe6 $1 {[%emt 0:08:02][%csl Re3]
[%cal Ge6e1]} 12. Nge2 {[%emt 0:12:05]} Nxe3 {[%emt 0:06:21]} 13. fxe3 {
[%emt 0:01:16]} Qxe3 $17 {[%emt 0:00:26][%csl Re1]} 14. Nd5 {[%emt 0:01:11]}
Qe5 {[%emt 0:01:24]} 15. Nxc7 $2 {[%emt 0:02:11] La position Blanche était
déjà critique avec un K bloqué au centre mais après ce coup, le rennais
perd du matériel} Qa5+ {[%emt 0:09:21]} 16. c3 {[%emt 0:03:13]} Nxe2 {[%emt 0:
00:13]} 17. Nxa8 {[%emt 0:03:38]} Nxc3 $1 $19 {[%emt 0:02:07]} 18. Qd2 {
[%emt 0:04:37]} Qe5+ {[%emt 0:02:21]} 19. Kf1 {[%emt 0:01:29]} Qd4 {[%emt 0:02:
04]} 20. bxc3 {[%emt 0:00:37]} Bxd3+ {[%emt 0:00:06]} 21. Ke1 {[%emt 0:00:07]}
Qc4 {[%emt 0:01:23]} 22. Rc1 {[%emt 0:00:19]} Kxf7 {[%emt 0:01:29]} 23. Nc7 {
[%emt 0:00:18]} Rc8 0-1